Workbook

Sheet Tabelle1
A1: 5 | E1: =Tabelle3!A2 -> Kaltenleutgeben
B2: Abschluss | G2: Budget | H2: MFP
A3: VHH | B3: Ende 2018 | C3: Ende 2019 | D3: Ende 2020 | E3: Ende 2021 | F3: Ende 2022 | G3: Ende 2023 | H3: Ende 2024 | I3: Ende 2025 | J3: Ende 2026 | K3: Ende 2027
A5: A.II Anlagevermögen | B5: 0 | C5: =Tabelle3!G2 -> 58483531.54 | D5: =Tabelle3!G3 -> 58371613.85 | E5: =Tabelle3!G4 -> 57915377.94 | F5: =Tabelle3!G5 -> 57593363 | G5: =Tabelle3!G6 -> 60680263 | H5: =Tabelle3!G7 -> 63719963 | I5: =Tabelle3!G8 -> 65564863 | J5: =Tabelle3!G9 -> 64822763 | K5: =Tabelle3!G10 -> 64006963
A6: sonstige | B6: =B8-B7-B5 -> 0 | C6: =C8-C7-C5 -> 2303172.23 | D6: =D8-D7-D5 -> 2724162.13 | E6: =E8-E7-E5 -> 2602443.59 | F6: =F8-F7-F5 -> 2804280 | G6: =G8-G7-G5 -> 2604066.42 | H6: =H8-H7-H5 -> 2629066.42 | I6: =I8-I7-I5 -> 2643166.42 | J6: 2662566.42 | K6: =K8-K7-K5 -> 2676566.42
A7: B.III Geld | B7: 0 | C7: =Tabelle3!H2 -> 2761831.32 | D7: =Tabelle3!H3 -> 2560061.8 | E7: =Tabelle3!H4 -> 3405699.46 | F7: =Tabelle3!H5 -> 3686787 | G7: =Tabelle3!H6 -> 1147387 | H7: =Tabelle3!H7 -> 744687 | I7: =Tabelle3!H8 -> 520187 | J7: =Tabelle3!H9 -> 212487 | K7: =Tabelle3!H10 -> 387
A8: Summe Aktiva | B8: =B12 -> 0 | C8: =C12 -> 63548535.09 | D8: =D12 -> 63655837.78 | E8: =E12 -> 63923520.99 | F8: =F12 -> 64084430 | G8: =G12 -> 64431716.42 | H8: 67093716.42 | I8: 68728216.42 | J8: 67697816.42 | K8: =K12 -> 66683916.42
A10: C+D Nettovermögen (EK) | B10: 0 | C10: =Tabelle3!I2+Tabelle3!J2 -> 58916573.96 | D10: =Tabelle3!I3+Tabelle3!J3 -> 59334937.46 | E10: =Tabelle3!I4+Tabelle3!J4 -> 59745655.73 | F10: =Tabelle3!I5+Tabelle3!J5 -> 60156671 | G10: =Tabelle3!I6+Tabelle3!J6 -> 59883871 | H10: =Tabelle3!I7+Tabelle3!J7 -> 59564271 | I10: =Tabelle3!I8+Tabelle3!J8 -> 59181571 | J10: =Tabelle3!I9+Tabelle3!J9 -> 58766871 | K10: =Tabelle3!I10+Tabelle3!J10 -> 58305271
A11: E+F Fremdkapital | B11: =B26 -> 0 | C11: =Tabelle3!K2+Tabelle3!L2 -> 4631961.13 | D11: =Tabelle3!K3+Tabelle3!L3 -> 4320900.32 | E11: =Tabelle3!K4+Tabelle3!L4 -> 4177865.26 | F11: =Tabelle3!K5+Tabelle3!L5 -> 3927759 | G11: =Tabelle3!K6+Tabelle3!L6 -> 4547845.42 | H11: =Tabelle3!K7+Tabelle3!L7 -> 7529445.42 | I11: =Tabelle3!K8+Tabelle3!L8 -> 9546645.42 | J11: =Tabelle3!K9+Tabelle3!L9 -> 8930945.42 | K11: =Tabelle3!K10+Tabelle3!L10 -> 8378645.42
A12: Summe Passiva | B12: =SUM(B10:B11) -> 0 | C12: 63548535.09 | D12: =SUM(D10:D11) -> 63655837.78 | E12: =SUM(E10:E11) -> 63923520.99 | F12: =SUM(F10:F11) -> 64084430 | G12: =SUM(G10:G11) -> 64431716.42 | H12: =SUM(H10:H11) -> 67093716.42 | I12: =SUM(I10:I11) -> 68728216.42 | J12: 67697816.42 | K12: =SUM(K10:K11) -> 66683916.42
G14: Budget | H14: MFP
A15: EHH: | B15: 2018 | C15: 2019 | D15: 2020 | E15: 2021 | F15: 2022 | G15: 2023 | H15: 2024 | I15: 2025 | J15: 2026 | K15: 2027
A16: SA0 | B16: 0 | C16: =Tabelle3!M2 -> 0 | D16: =Tabelle3!M3 -> 0 | E16: =Tabelle3!M4 -> 422461 | F16: =Tabelle3!M5 -> 405835 | G16: =Tabelle3!M6 -> -272800 | H16: =Tabelle3!M7 -> -319600 | I16: =Tabelle3!M8 -> -382700 | J16: =Tabelle3!M9 -> -414700 | K16: =Tabelle3!M10 -> -461600
A17: MVAG 2226 (Afa+Rückst) | C17: =Tabelle3!Q2 -> 0 | D17: =Tabelle3!Q3 -> 847742.17 | E17: =Tabelle3!Q4 -> 899783.52 | F17: =Tabelle3!Q5 -> 982281 | G17: =Tabelle3!Q6 -> 920100 | H17: =Tabelle3!Q7 -> 889900 | I17: =Tabelle3!Q8 -> 854700 | J17: =Tabelle3!Q9 -> 841700 | K17: =Tabelle3!Q10 -> 835400
A18: FHH:
A19: SA2 (investiver HH) | F19: =Tabelle3!O5 -> -652789 | G19: =Tabelle3!O6 -> -4007000 | H19: =Tabelle3!O7 -> -3929600 | I19: =Tabelle3!O8 -> -2699600 | J19: =Tabelle3!O9 -> -99600 | K19: =Tabelle3!O10 -> -19600
A20: SA4 (Finanzierungstätigkeit) | F20: =Tabelle3!P5 -> -366490 | G20: =Tabelle3!P6 -> 823800 | H20: =Tabelle3!P7 -> 2981600 | I20: =Tabelle3!P8 -> 2017200 | J20: =Tabelle3!P9 -> -615700 | K20: =Tabelle3!P10 -> -552300
A21: SA5 (Eigene ZMB Veränd) | F21: =F19+F20+Tabelle3!N5 -> 408157 | G21: =G19+G20+Tabelle3!N6 -> -2539400 | H21: =H19+H20+Tabelle3!N7 -> -402700 | I21: =I19+I20+Tabelle3!N8 -> -224500 | J21: =J19+J20+Tabelle3!N9 -> -307700 | K21: =K19+K20+Tabelle3!N10 -> -212100
A22: alte VRV:
A23: Querschnitt Saldo1 | C23: 0 | D23: 0
A24: Querschnitt Saldo 2 | C24: 0 | D24: 0
A25: Quscherschnitt Saldo 4 | C25: 0 | D25: 0
A26: Schuldennachweis Schuldenstand Jahresende | B26: 0 | C26: 0
A28: EK Quote | D28: =D10/D12 -> 0.9321209103 | E28: =E10/E12 -> 0.9346427544 | F28: 0.938709621 | G28: 0.9294160443 | H28: 0.8877771896 | I28: 0.8610956909 | J28: 0.8680763148 | K28: =K10/K12 -> 0.8743528294
A29: FK Quote | D29: =D11/D12 -> 0.06787908966 | E29: =E11/E12 -> 0.06535724558 | F29: 0.06129037896 | G29: 0.07058395574 | H29: 0.1122228104 | I29: 0.1389043091 | J29: =J11/J12 -> 0.1319236852 | K29: 0.1256471706
B30: 0 | C30: 1 | D30: 2 | E30: 3 | F30: 4 | G30: 5 | H30: 6 | I30: 7 | J30: 8 | K30: 9
E31: Gew. Jahr | F31: 4
A32: Kurzbefund Zukunftsplanung:
A33: idF. n. angefr.
D35: Aktiva | E35: Passiva
D36: =SUM(IF(Tabelle1!$B$30:$K$30=Tabelle1!$F$31,Tabelle1!B7:K7,0)) -> 3686787 | E36: =SUM(IF(Tabelle1!$B$30:$K$30=Tabelle1!$F$31,Tabelle1!B11:K11,0)) -> 3927759
D37: =SUM(IF(Tabelle1!$B$30:$K$30=Tabelle1!$F$31,Tabelle1!B6:K6,0)) -> 2804280 | E37: =SUM(IF(Tabelle1!$B$30:$K$30=Tabelle1!$F$31,Tabelle1!B10:K10,0)) -> 60156671
D38: =SUM(IF(Tabelle1!$B$30:$K$30=Tabelle1!$F$31,Tabelle1!B5:K5,0)) -> 57593363
D39: =SUM(IF(Tabelle1!$B$30:$K$30=Tabelle1!$F$31,Tabelle1!B16:K16,0)) -> 405835
D40: =SUM(IF(Tabelle1!$B$30:$K$30=Tabelle1!$F$31,Tabelle1!B15:K15,0)) -> 2022
D41: =SUM(IF(Tabelle1!$B$30:$K$30=Tabelle1!$F$31,Tabelle1!B28:K28,0)) -> 0.938709621
D42: =SUM(IF(Tabelle1!$B$30:$K$30=Tabelle1!$F$31,Tabelle1!B29:K29,0)) -> 0.06129037896

Sheet Tabelle2
A1: 7 | C1: ="Haushaltsanalyse " & Tabelle3!A2 -> Haushaltsanalyse Kaltenleutgeben
A3: Jahr | B3: =Tabelle1!D40 -> 2022
A4: Nachhaltigkeitspotential SA0 | B4: =Tabelle1!D39 -> 405835
A5: 8-Jahresmittel SA0 | B5: =SUM(Tabelle3!M2:M9)/8 -> -70188
A6: Abweichung | B6: =B4-B5 -> 476023
A8: Nettoverm-Qu% | B8: =Tabelle1!D41 -> 0.938709621
A9: Fremdk-Qu% | B9: =Tabelle1!D42 -> 0.06129037896
A11: Anlagevermögen | B11: =Tabelle1!D38 -> 57593363
A12: Fremdkapital | B12: =Tabelle1!E36 -> 3927759

Sheet Tabelle3
A1: GemName | B1: ID | C1: WP_submissionn | D1: GKz | E1: Jahr | F1: DS_Art | G1: anlagev | H1: geldv | I1: nettov | J1: sonderp | K1: langfr | L1: kurzfr | M1: SA0 | N1: SA1 | O1: SA2 | P1: SA4 | Q1: abschr2226 | R1: bemerkung
A2: Kaltenleutgeben | B2: 32 | C2: 9 | D2: 31713 | E2: 2019 | F2: 4 | G2: 58483531.54 | H2: 2761831.32 | I2: 58102341.68 | J2: 814232.28 | K2: 4218285.69 | L2: 413675.44 | M2: 0 | Q2: 0
A3: Kaltenleutgeben | B3: 57 | C3: 20 | D3: 30603 | E3: 2020 | F3: 4 | G3: 58371613.85 | H3: 2560061.8 | I3: 58333588.43 | J3: 1001349.03 | K3: 3801337.79 | L3: 519562.53 | Q3: =882358.28-34616.11 -> 847742.17 | R3: 916974.39 | S3: =Q3-R3 -> -69232.22
A4: Kaltenleutgeben | B4: 60 | C4: 23 | D4: 30603 | E4: 2021 | F4: 4 | G4: 57915377.94 | H4: 3405699.46 | I4: 58756049.43 | J4: 989606.3 | K4: 3746580.84 | L4: 431284.42 | M4: 422461 | N4: 1337681.75 | O4: -463943.11 | P4: -69263.92 | Q4: =-37720.98+937504.5 -> 899783.52 | R4: 975225.48 | S4: =Q4-R4 -> -75441.96
A5: Kaltenleutgeben | B5: 34 | C5: 26 | D5: 30603 | E5: 2022 | F5: 4 | G5: 57593363 | H5: 3686787 | I5: 59163985 | J5: 992686 | K5: 3292761 | L5: 634998 | M5: 405835 | N5: 1427436 | O5: -652789 | P5: -366490 | Q5: 982281
A6: Kaltenleutgeben | B6: 35 | C6: 28 | D6: 30603 | E6: 2023 | F6: 3 | G6: =G5-O6-Q6 -> 60680263 | H6: =H5+N6+O6+P6 -> 1147387 | I6: =I5+M6 -> 58891185 | J6: =J5 -> 992686 | K6: =K5+P6 -> 4116561 | L6: 431284.42 | M6: -272800 | N6: 643800 | O6: -4007000 | P6: 823800 | Q6: 920100
A7: Kaltenleutgeben | B7: 36 | C7: 29 | D7: 30603 | E7: 2024 | F7: 3 | G7: =G6-O7-Q7 -> 63719963 | H7: =H6+N7+O7+P7 -> 744687 | I7: =I6+M7 -> 58571585 | J7: =J6 -> 992686 | K7: =K6+P7 -> 7098161 | L7: 431284.42 | M7: -319600 | N7: 545300 | O7: -3929600 | P7: 2981600 | Q7: 889900
A8: Kaltenleutgeben | B8: 37 | C8: 30 | D8: 30603 | E8: 2025 | F8: 3 | G8: 65564863 | H8: 520187 | I8: 58188885 | J8: 992686 | K8: 9115361 | L8: 431284.42 | M8: -382700 | N8: 457900 | O8: -2699600 | P8: 2017200 | Q8: 854700
A9: Kaltenleutgeben | B9: 38 | C9: 31 | D9: 30603 | E9: 2026 | F9: 3 | G9: 64822763 | H9: 212487 | I9: 57774185 | J9: 992686 | K9: 8499661 | L9: 431284.42 | M9: -414700 | N9: 407600 | O9: -99600 | P9: -615700 | Q9: 841700
A10: Kaltenleutgeben | B10: 38 | C10: 31 | D10: 30603 | E10: 2027 | F10: 3 | G10: =G9-O10-Q10 -> 64006963 | H10: =H9+N10+O10+P10 -> 387 | I10: =I9+M10 -> 57312585 | J10: 992686 | K10: 7947361 | L10: 431284.42 | M10: -461600 | N10: 359800 | O10: -19600 | P10: -552300 | Q10: 835400
I13: =I2+J2 -> 58916573.96
I14: =I3+J3 -> 59334937.46
I15: 59745655.73
I16: =I5+J5 -> 60156671
I17: 0 | J17: =SUM(I13:I17)/4 -> 59538459.54
